bitfinex-derivatives/quotes_BTCF0:USTF0_20250327
["timestamp","ask_amount","ask_price","bid_price","bid_amount"]
[1743046699549,0.54357042,87673.0,87672.0,0.00109624]
[1743046700645,0.54357042,87673.0,87672.0,0.00809624]
[1743046701047,0.55202224,87673.0,87672.0,0.00809624]
[1743046701252,0.55202224,87673.0,87672.0,0.00509624]
[1743046701445,0.55202224,87673.0,87672.0,0.00809624]
[1743046702546,0.55202224,87673.0,87672.0,0.00745624]
[1743046706452,0.65434596,87673.0,87672.0,0.00745624]
[1743046706649,0.65434596,87673.0,87672.0,0.00809624]
[1743046706849,0.29354596,87673.0,87672.0,0.00809624]
[1743046707156,0.65434596,87673.0,87672.0,0.00809624]
[1743046708853,0.29354596,87673.0,87672.0,0.00809624]
[1743046709053,0.64864204,87673.0,87672.0,0.00809624]
[1743046709661,0.28784204,87673.0,87672.0,0.00809624]
[1743046709854,0.64864204,87673.0,87672.0,0.00809624]
[1743046710360,0.28784204,87673.0,87672.0,0.00809624]
[1743046710861,0.64864204,87673.0,87672.0,0.00809624]
[1743046712257,0.54631832,87673.0,87672.0,0.00809624]
[1743046712455,0.54631832,87673.0,87672.0,0.00745624]
[1743046713251,0.00072,87673.0,87672.0,0.12150404]
[1743046713454,0.1147665,87673.0,87672.0,0.12210404]
[1743046713654,0.1147665,87673.0,87672.0,0.15230404]
[1743046714266,0.1147665,87673.0,87672.0,0.16348164]
[1743046716664,0.1147665,87673.0,87672.0,0.19468164]
[1743046717058,0.1147665,87673.0,87672.0,0.55548164]
[1743046719158,0.1140465,87673.0,87672.0,0.55548164]
[1743046720061,0.12278109,87673.0,87672.0,0.55548164]
[1743046720264,0.12921666,87673.0,87672.0,0.55548164]
[1743046720863,0.01517016,87673.0,87672.0,0.55548164]
[1743046721060,0.01453016,87673.0,87672.0,0.55548164]
[1743046722256,0.12857666,87673.0,87672.0,0.55548164]
[1743046722455,0.12925666,87673.0,87672.0,0.55548164]
[1743046722862,0.12925666,87673.0,87672.0,0.54430404]
[1743046724162,0.12925666,87673.0,87672.0,0.43025624]
[1743046724363,0.16125666,87673.0,87672.0,0.06945624]
[1743046724563,0.16696125,87673.0,87672.0,0.03865624]
[1743046724867,0.19786125,87673.0,87672.0,0.03933624]
[1743046725074,0.19786125,87673.0,87672.0,0.03865624]
[1743046725268,0.19786125,87673.0,87672.0,0.03925624]
[1743046726867,0.55866125,87673.0,87672.0,0.03925624]
[1743046727168,0.55866125,87673.0,87672.0,0.00805624]
[1743046727361,0.1140569,87665.0,87664.0,0.00017108]
[1743046727561,0.1140569,87665.0,87664.0,0.00077108]
[1743046727562,0.60065608,87665.0,87664.0,0.00077108]
[1743046727763,0.60065608,87665.0,87664.0,0.00141108]
[1743046727963,0.60645165,87665.0,87664.0,0.00081108]
[1743046728166,0.70005165,87665.0,87664.0,0.00017108]
[1743046729476,0.70105165,87665.0,87664.0,0.00017108]
[1743046729876,0.70105165,87665.0,87664.0,0.00217108]
[1743046730677,0.70305165,87665.0,87664.0,0.00017108]
[1743046730868,0.70305165,87665.0,87656.0,0.00045633]
[1743046730869,0.1140673,87657.0,87656.0,0.00045633]
[1743046731073,0.48994648,87657.0,87656.0,0.00105633]
[1743046731271,0.49574205,87657.0,87656.0,0.00105633]
[1743046731672,0.55754205,87657.0,87656.0,0.00105633]
[1743046731873,0.56914522,87657.0,87656.0,0.00105633]
[1743046732070,0.57014522,87657.0,87656.0,0.00105633]
[1743046732271,0.68086522,87657.0,87656.0,0.00105633]
[1743046732582,0.68086522,87657.0,87656.0,0.03205633]
[1743046732982,0.68086522,87657.0,87656.0,0.03145633]
[1743046733179,0.32006522,87657.0,87656.0,0.03145633]
[1743046733376,0.68086522,87657.0,87656.0,0.03205633]
[1743046733576,0.68286522,87657.0,87656.0,0.03145633]
[1743046734985,0.68286652,87657.0,87656.0,0.03145633]
[1743046736881,0.68286654,87657.0,87656.0,0.03145633]
[1743046737385,0.32206654,87657.0,87656.0,0.03145633]
[1743046737583,0.32206654,87657.0,87656.0,0.03213633]
[1743046737584,0.68286654,87657.0,87656.0,0.03213633]
[1743046737985,0.68286654,87657.0,87656.0,0.03145633]
[1743046738187,0.67716063,87657.0,87656.0,0.03145633]
[1743046738886,0.6774088,87657.0,87656.0,0.03145633]
[1743046740587,0.4526215,87657.0,87656.0,0.14552493]
[1743046740888,0.01841833,87657.0,87656.0,0.17846493]
[1743046741084,0.01777833,87657.0,87656.0,0.17846493]
[1743046741280,0.01777833,87657.0,87656.0,0.20896493]
[1743046742380,0.01777833,87657.0,87656.0,0.22043828]
[1743046742782,0.01677833,87657.0,87656.0,0.22043828]
[1743046742982,0.01677833,87657.0,87656.0,0.22143828]
[1743046743185,0.01477833,87657.0,87656.0,0.20996493]
[1743046743391,0.01477833,87657.0,87656.0,0.20896493]
[1743046743579,0.01477833,87657.0,87656.0,0.20996493]
[1743046743975,0.01467649,87657.0,87656.0,0.20996493]
[1743046744582,0.01467649,87657.0,87656.0,1.70996493]
[1743046745083,0.12874379,87657.0,87656.0,1.70996493]
[1743046745385,0.01467649,87657.0,87656.0,0.20996493]
[1743046745891,0.1140636,87660.0,87657.0,0.1711004]
[1743046746091,0.1140636,87660.0,87659.0,0.3608]
[1743046746384,0.0570287,87665.0,87664.0,0.1140569]
[1743046746584,0.0576687,87665.0,87664.0,0.1146569]
[1743046747286,0.00064,87665.0,87664.0,0.1146569]
[1743046747695,0.0570276,87667.0,87666.0,0.1710763]
[1743046747888,0.0571076,87667.0,87666.0,0.2025163]
[1743046748388,0.0577476,87667.0,87666.0,0.2025163]
[1743046748694,0.00072,87667.0,87666.0,0.2025163]
[1743046748989,8e-05,87667.0,87666.0,0.0884659]
[1743046749186,0.1151343,87667.0,87666.0,0.03144]
[1743046749391,0.1158543,87667.0,87666.0,0.1448556]
[1743046749593,0.1158543,87667.0,87666.0,0.1454956]
[1743046749795,0.1178543,87667.0,87666.0,0.1454956]
[1743046751899,0.1178543,87667.0,87666.0,0.03144]
[1743046752391,0.1178543,87667.0,87666.0,0.1454956]
[1743046755000,0.1178543,87667.0,87666.0,0.03144]
[1743046756400,0.1178543,87667.0,87666.0,0.0308]
[1743046757996,0.12666298,87667.0,87666.0,0.0308]
[1743046758501,0.13249034,87667.0,87666.0,0.0314]
[1743046758901,0.13249034,87667.0,87666.0,0.0308]
[1743046759202,0.13249034,87667.0,87666.0,0.0314]
[1743046759404,0.13249034,87667.0,87666.0,0.0308]
[1743046759704,0.13249034,87667.0,87666.0,0.03144]
[1743046760799,0.16279034,87667.0,87666.0,0.03144]
[1743046761996,0.16279034,87667.0,87666.0,0.06434]
[1743046762202,0.16849517,87667.0,87666.0,0.06434]
[1743046765002,0.16849517,87667.0,87666.0,0.0637]
[1743046765509,0.16852156,87667.0,87666.0,0.06442]
[1743046766008,0.0570278,87666.0,87643.0,1.5]
[1743046766192,0.114066,87659.0,87658.0,0.2331938]
[1743046766396,0.12358107,87659.0,87658.0,0.2338738]
[1743046766593,0.12940843,87659.0,87658.0,0.2657738]
[1743046767408,0.12941353,87659.0,87658.0,0.2657738]
[1743046768600,0.12941353,87659.0,87658.0,0.2667738]
[1743046769503,0.12941837,87659.0,87658.0,0.2667738]
[1743046773409,0.12941837,87659.0,87658.0,0.53969055]
[1743046774511,0.12943245,87659.0,87658.0,0.53969055]
[1743046776213,0.13513733,87659.0,87658.0,0.53969055]
[1743046776413,0.12943245,87659.0,87658.0,0.53969055]
[1743046776614,0.13513735,87659.0,87658.0,0.53969055]
[1743046776817,0.13513735,87659.0,87658.0,0.33679675]
[1743046777013,0.19303245,87659.0,87658.0,0.30649675]
[1743046777218,0.30941748,87659.0,87658.0,0.27459675]
[1743046777513,0.30939804,87659.0,87658.0,0.00168]
[1743046777706,0.32056239,87659.0,87658.0,0.00168]
[1743046777911,0.35126239,87659.0,87658.0,0.00168]
[1743046779311,0.35153265,87659.0,87658.0,0.00168]
[1743046779516,0.35153265,87659.0,87658.0,0.03328]
[1743046784319,0.35153265,87659.0,87658.0,0.0326]
[1743046784723,0.35153265,87659.0,87658.0,0.0332]
[1743046785021,0.48832958,87659.0,87658.0,0.0332]
[1743046785226,0.37761647,87659.0,87658.0,0.0332]
[1743046785523,0.48829647,87659.0,87658.0,0.0332]
[1743046787323,0.488315,87659.0,87658.0,0.0332]
[1743046788419,0.488315,87659.0,87658.0,0.0326]
[1743046791126,0.47351464,87659.0,87658.0,0.0326]
[1743046791320,0.48822753,87659.0,87658.0,0.0326]
[1743046793629,0.3514306,87659.0,87658.0,0.0326]
[1743046793828,0.36567101,87659.0,87658.0,0.0326]
[1743046794031,1.08727101,87659.0,87658.0,0.0326]
[1743046794824,1.0730306,87659.0,87658.0,0.0326]
[1743046796021,1.0730306,87659.0,87658.0,0.001]
[1743046796423,1.0413306,87659.0,87658.0,0.001]
[1743046796622,0.67482484,87659.0,87658.0,0.001]
[1743046796825,0.41817884,87659.0,87658.0,0.175766]
[1743046797132,0.38747884,87659.0,87658.0,0.176366]
[1743046798327,0.50154354,87659.0,87658.0,0.176366]
[1743046799829,0.14074354,87659.0,87658.0,0.176366]
[1743046801026,0.14644868,87659.0,87658.0,0.176366]
[1743046801334,0.14074354,87659.0,87658.0,0.176366]
[1743046801724,0.14644867,87659.0,87658.0,0.176366]
[1743046802331,0.14629281,87659.0,87658.0,0.176366]
[1743046803034,0.14058768,87659.0,87658.0,0.176366]
[1743046806036,0.02652298,87659.0,87658.0,0.176366]
[1743046806439,0.24313535,87659.0,87658.0,0.176366]
[1743046808255,0.24316593,87659.0,87658.0,0.176366]
[1743046810152,0.24318047,87659.0,87658.0,0.176366]
[1743046810346,0.1406328,87659.0,87658.0,0.176366]
[1743046818364,0.0265681,87659.0,87658.0,0.176366]
[1743046819454,0.1406328,87659.0,87658.0,0.176366]
[1743046820066,0.14068747,87659.0,87658.0,0.176366]
[1743046820470,0.1237112,87659.0,87658.0,0.176366]
[1743046820858,0.26537079,87659.0,87658.0,0.176366]
[1743046821258,0.2710759,87659.0,87658.0,0.176366]
[1743046822967,0.28255792,87659.0,87658.0,0.176366]
[1743046823668,0.2710759,87659.0,87658.0,0.176366]
[1743046824058,0.16852423,87659.0,87658.0,0.176366]
[1743046827965,0.16853525,87659.0,87658.0,0.176366]
[1743046829965,0.16853571,87659.0,87658.0,0.176366]
[1743046830567,0.16853571,87659.0,87658.0,0.0623]
[1743046830767,0.19993571,87659.0,87658.0,0.0623]
[1743046831269,0.19993571,87659.0,87658.0,0.26747743]
[1743046832059,0.19993578,87659.0,87658.0,0.26747743]
[1743046833173,0.19993578,87659.0,87658.0,0.20677743]
[1743046833371,0.21419266,87659.0,87658.0,0.20677743]
[1743046833573,0.19993578,87659.0,87658.0,0.20677743]
[1743046834075,0.19993578,87659.0,87658.0,0.17111668]
[1743046834272,0.19993578,87659.0,87658.0,0.17171668]
[1743046835375,0.25539956,87659.0,87658.0,0.0006]
[1743046835677,0.1140673,87657.0,87656.0,0.00045633]
[1743046835876,0.12957102,87657.0,87656.0,0.00045633]
[1743046836273,0.19939838,87657.0,87656.0,0.00045633]
[1743046837487,0.19939838,87657.0,87656.0,0.00145633]
[1743046838375,0.92099838,87657.0,87656.0,0.00145633]
[1743046839478,1.08710216,87657.0,87656.0,0.00145633]
[1743046840367,1.11390263,87657.0,87656.0,0.00145633]
[1743046841978,0.39230263,87657.0,87656.0,0.00145633]
[1743046842282,1.08710216,87657.0,87656.0,0.00145633]
[1743046842482,0.39230263,87657.0,87656.0,0.00145633]
[1743046842777,1.08710216,87657.0,87656.0,0.00145633]
[1743046842983,1.11390263,87657.0,87656.0,0.00145633]
[1743046843180,1.08710216,87657.0,87656.0,0.00145633]
[1743046843678,1.10133265,87657.0,87656.0,0.00145633]
[1743046844385,1.08710216,87657.0,87656.0,0.00145633]
[1743046844589,0.35083844,87657.0,87656.0,0.00145633]
[1743046844884,1.08708375,87657.0,87656.0,0.00145633]
[1743046845082,1.10131206,87657.0,87656.0,0.00145633]
[1743046845282,1.08708375,87657.0,87656.0,0.00145633]
[1743046845484,0.36548375,87657.0,87656.0,0.00145633]
[1743046845686,1.08708375,87657.0,87656.0,0.00145633]
[1743046845981,1.25783413,87657.0,87656.0,0.00145633]
[1743046847785,0.53623413,87657.0,87656.0,0.00145633]
[1743046847984,1.25783413,87657.0,87656.0,0.00145633]
[1743046848386,0.53623413,87657.0,87656.0,0.00145633]
[1743046848688,1.25783413,87657.0,87656.0,0.00145633]
[1743046849381,0.53623413,87657.0,87656.0,0.00145633]
[1743046849577,0.31001997,87657.0,87656.0,0.00145633]
[1743046849886,1.03161997,87657.0,87656.0,0.00145633]
[1743046853592,1.03157308,87657.0,87656.0,0.00145633]
[1743046854284,1.0581497,87657.0,87656.0,0.00145633]
[1743046854791,1.05815119,87657.0,87656.0,0.00145633]
[1743046855792,1.05815119,87657.0,87656.0,0.00024651]
[1743046856487,1.03157308,87657.0,87656.0,0.00024651]
[1743046858087,1.08704511,87657.0,87656.0,0.00024651]
[1743046858685,0.0570409,87646.0,87642.0,0.0331]
[1743046858894,0.1140881,87641.0,87640.0,0.00045641]
[1743046859095,0.12948652,87641.0,87640.0,0.00105641]
[1743046859790,0.13531388,87641.0,87640.0,0.00105641]
[1743046860001,0.12731388,87641.0,87640.0,0.00105641]
[1743046860589,0.12731388,87641.0,87640.0,0.00605641]
[1743046860782,0.23795388,87641.0,87640.0,0.00605641]
[1743046861095,0.23813055,87641.0,87640.0,0.00605641]
[1743046861685,0.23813055,87641.0,87640.0,0.01005641]
[1743046863392,0.59893055,87641.0,87640.0,0.01005641]
[1743046863593,0.61040897,87641.0,87640.0,0.04205641]
[1743046865795,0.24960897,87641.0,87640.0,0.04205641]
[1743046865992,0.61040897,87641.0,87640.0,0.04205641]
[1743046867901,0.62465946,87641.0,87640.0,0.04205641]
[1743046868491,0.26385946,87641.0,87640.0,0.03905641]
[1743046868691,0.62465946,87641.0,87640.0,0.03605641]
[1743046868893,0.61040897,87641.0,87640.0,0.03605641]
[1743046869393,0.64310897,87641.0,87640.0,0.03605641]
[1743046869993,0.61040897,87641.0,87640.0,0.03605641]
[1743046870194,0.78128711,87641.0,87640.0,0.03605641]
[1743046871303,0.79553841,87641.0,87640.0,0.03605641]
[1743046872202,0.43473841,87641.0,87640.0,0.03605641]
[1743046872400,0.79553841,87641.0,87640.0,0.03605641]
[1743046872604,0.79549164,87641.0,87640.0,0.03605641]
[1743046874404,0.82729164,87641.0,87640.0,0.03605641]
[1743046874603,0.82729054,87641.0,87640.0,0.03605641]
[1743046874907,0.88276784,87641.0,87640.0,0.03605641]
[1743046876202,0.89566548,87641.0,87640.0,0.03605641]
[1743046876407,0.89586921,87641.0,87640.0,0.03605641]
[1743046877803,0.47959191,87641.0,87640.0,0.03605641]
[1743046878000,0.81324443,87641.0,87640.0,0.03605641]
[1743046878201,0.84039191,87641.0,87640.0,0.03605641]
[1743046879304,0.47960357,87641.0,87640.0,0.03605641]
[1743046879506,0.81324443,87641.0,87640.0,0.03605641]
[1743046879807,0.84040357,87641.0,87640.0,0.03605641]
[1743046880595,0.81324443,87641.0,87640.0,0.03605641]
[1743046881603,0.64236629,87641.0,87640.0,0.03605641]
[1743046882709,0.65661711,87641.0,87640.0,0.03605641]
[1743046882905,0.29581711,87641.0,87640.0,0.03605641]
[1743046883101,0.65661711,87641.0,87640.0,0.03605641]
[1743046883798,0.64236629,87641.0,87640.0,0.03605641]
[1743046885394,0.69784412,87641.0,87640.0,0.03605641]
[1743046886310,0.69792975,87641.0,87640.0,0.03605641]
[1743046887601,0.1140985,87633.0,87632.0,0.00017108]
[1743046887802,0.60114007,87633.0,87632.0,0.00085108]
[1743046888207,0.60719305,87633.0,87632.0,0.00085108]
[1743046888409,0.67924773,87633.0,87632.0,0.00085108]
[1743046889810,0.67924773,87633.0,87632.0,0.00285108]
[1743046890110,0.56864773,87633.0,87632.0,0.00285108]
[1743046890300,0.67924808,87633.0,87632.0,0.00485108]
[1743046892114,0.61594808,87633.0,87632.0,0.00485108]
[1743046892407,0.50534808,87633.0,87632.0,0.00417108]
[1743046892611,0.50534808,87633.0,87632.0,0.00481108]
[1743046893502,0.50534808,87633.0,87632.0,0.00417108]
[1743046893700,0.50534808,87633.0,87632.0,0.00477108]
[1743046894116,0.50534783,87633.0,87632.0,0.00477108]
[1743046894305,0.50534783,87633.0,87632.0,0.01639985]
[1743046894511,0.50534783,87633.0,87632.0,0.00417108]
[1743046894713,0.50534783,87633.0,87632.0,0.00477108]
[1743046895407,0.50534783,87633.0,87632.0,0.06877108]
[1743046896107,0.50534777,87633.0,87632.0,0.06877108]
[1743046897114,0.50534777,87633.0,87632.0,0.06817108]
[1743046897907,0.14454777,87633.0,87632.0,0.06817108]
[1743046898316,0.14454777,87633.0,87632.0,0.06877108]
[1743046898918,0.28139241,87633.0,87632.0,0.06877108]
[1743046901101,0.27568538,87633.0,87632.0,0.06877108]
[1743046901306,0.28139241,87633.0,87632.0,0.06877108]
[1743046902703,0.14454777,87633.0,87632.0,0.06877108]
[1743046903420,0.14454777,87633.0,87632.0,0.06817108]
[1743046903606,0.14454777,87633.0,87632.0,0.06877108]
[1743046905620,0.14454777,87633.0,87632.0,0.06817108]
[1743046905918,0.14454777,87633.0,87632.0,0.06881108]
[1743046906804,0.17714777,87633.0,87632.0,0.06881108]
[1743046907009,0.17714777,87633.0,87632.0,0.06817108]
[1743046907209,0.17714777,87633.0,87632.0,0.06897108]
[1743046908014,0.17718029,87633.0,87632.0,0.06897108]
[1743046908318,0.53798029,87633.0,87632.0,0.06897108]
[1743046908519,0.53798029,87633.0,87632.0,0.06817108]
[1743046908713,0.57098029,87633.0,87632.0,0.06817108]
[1743046909516,0.57098029,87633.0,87632.0,0.06885108]
[1743046909720,0.57098029,87633.0,87632.0,0.06817108]
[1743046909913,0.56176421,87633.0,87632.0,0.06817108]
[1743046910112,0.57093111,87633.0,87632.0,0.06817108]
[1743046910308,0.58519052,87633.0,87632.0,0.06817108]
[1743046910521,0.61729052,87633.0,87632.0,0.06817108]
[1743046911920,0.59386421,87633.0,87632.0,0.06817108]
[1743046912115,0.60307321,87633.0,87632.0,0.0308]
[1743046913230,0.65855329,87633.0,87632.0,0.0308]
[1743046914115,0.1141089,87625.0,87624.0,0.00062757]
[1743046914313,0.4906251,87625.0,87624.0,0.00126757]
[1743046914513,0.1141154,87620.0,87619.0,0.27291675]
[1743046914816,0.24663543,87620.0,87619.0,0.27391675]
[1743046915115,0.25832541,87620.0,87619.0,0.27391675]
[1743046915318,0.25532541,87620.0,87619.0,0.27391675]
[1743046915519,0.32052541,87620.0,87619.0,0.27391675]
[1743046915923,0.32031013,87620.0,87619.0,0.27391675]
[1743046916218,0.32031013,87620.0,87619.0,0.27691675]
[1743046917124,0.32031013,87620.0,87619.0,0.27791675]
[1743046917724,0.32031013,87620.0,87619.0,0.27691675]
[1743046917911,0.32231013,87620.0,87619.0,0.27391675]
[1743046918116,0.32231013,87620.0,87619.0,0.001]
[1743046919020,0.32231013,87620.0,87619.0,0.0333]
[1743046919829,0.32235554,87620.0,87619.0,0.0323]
[1743046921722,0.45903478,87620.0,87619.0,0.0323]
[1743046923733,0.81983478,87620.0,87619.0,0.0323]
[1743046924235,0.81983476,87620.0,87619.0,0.0323]
[1743046924534,0.1141167,87619.0,87618.0,0.0309]
[1743046924834,0.12986301,87619.0,87618.0,0.0309]
[1743046925037,0.19706684,87619.0,87618.0,0.0309]
[1743046925828,0.19806684,87619.0,87618.0,0.0309]
[1743046926135,0.55886684,87619.0,87618.0,0.0309]
[1743046926727,0.55886706,87619.0,87618.0,0.0309]
[1743046926926,0.55890735,87619.0,87618.0,0.0309]
[1743046927623,0.66950735,87619.0,87618.0,0.0309]
[1743046928033,0.66850735,87619.0,87618.0,0.0309]
[1743046928237,0.67050735,87619.0,87618.0,0.0309]
[1743046931936,0.30970735,87619.0,87618.0,0.0309]
[1743046932138,0.67050735,87619.0,87618.0,0.03198]
[1743046932331,0.67050735,87619.0,87618.0,0.0309]
[1743046933735,0.30970735,87619.0,87618.0,0.0309]
[1743046933935,0.67050735,87619.0,87618.0,0.0315]
[1743046934139,0.67050735,87619.0,87618.0,0.0309]
[1743046936242,0.80718659,87619.0,87618.0,0.0309]
[1743046936943,0.80730321,87619.0,87618.0,0.0309]
[1743046938845,0.80729306,87619.0,87618.0,0.0309]
[1743046940448,0.67061382,87619.0,87618.0,0.0309]
[1743046941957,0.67057382,87619.0,87618.0,0.0309]
[1743046942442,0.69463322,87619.0,87618.0,0.00068]
[1743046942642,0.1141246,87613.0,87612.0,0.0303]
[1743046942842,0.1300579,87613.0,87612.0,0.03094]
[1743046943143,0.1300579,87613.0,87612.0,0.1450659]
[1743046943343,0.14588553,87613.0,87612.0,0.1450659]
[1743046943551,0.20708553,87613.0,87612.0,0.1450659]
[1743046944150,0.17598553,87613.0,87612.0,0.1454259]
[1743046944344,0.02193713,87613.0,87612.0,0.1460259]
[1743046944546,0.13606173,87613.0,87612.0,0.1460259]
[1743046944750,0.13606163,87613.0,87612.0,0.1460259]
[1743046945638,0.13606163,87613.0,87612.0,0.1792259]
[1743046946556,0.1361102,87613.0,87612.0,0.1792259]
[1743046947552,0.13040215,87613.0,87612.0,0.1792259]
[1743046949347,0.01627755,87613.0,87612.0,0.5400259]
[1743046949548,0.12936214,87613.0,87612.0,0.5400259]
[1743046949749,0.13040215,87613.0,87612.0,0.5400259]
[1743046951758,0.01627755,87613.0,87612.0,0.5400259]
[1743046951954,0.13040215,87613.0,87612.0,0.5400259]
[1743046956854,0.01627755,87613.0,87612.0,0.5400259]
[1743046957955,0.04647755,87613.0,87612.0,0.5400259]
[1743046958158,0.13695102,87621.0,87620.0,0.1141154]
[1743046958356,0.13763102,87621.0,87620.0,0.1147954]
[1743046958664,0.13763102,87621.0,87620.0,0.4755954]
[1743046958856,0.25106572,87621.0,87620.0,0.4755954]
[1743046959057,0.25182572,87621.0,87620.0,0.4755954]
[1743046959653,0.25182572,87621.0,87620.0,0.5375954]
[1743046959854,0.25306572,87621.0,87620.0,0.5375954]
[1743046960057,0.25406572,87621.0,87620.0,0.5375954]
[1743046961065,0.1171147,87621.0,87620.0,0.5375954]
[1743046961255,0.1177947,87621.0,87620.0,0.5375954]
[1743046961450,0.1171147,87621.0,87620.0,0.54929032]
[1743046963555,0.13199288,87621.0,87620.0,0.54929032]
[1743046963754,0.16339288,87621.0,87620.0,0.54929032]
[1743046964358,0.16339317,87621.0,87620.0,0.54929032]
[1743046964953,0.16337906,87621.0,87620.0,0.54929032]
[1743046965669,0.1485147,87621.0,87620.0,0.54929032]
[1743046968163,0.1485141,87621.0,87620.0,0.54929032]
[1743046968563,0.16341033,87621.0,87620.0,0.54929032]
[1743046970163,0.1485141,87621.0,87620.0,0.54929032]
[1743046970363,0.05858196,87621.0,87620.0,0.54929032]
[1743046970568,0.064614,87621.0,87620.0,0.54929032]
[1743046970870,0.065294,87621.0,87620.0,0.54929032]
[1743046971064,0.098394,87621.0,87620.0,0.54929032]
[1743046971971,0.097714,87621.0,87620.0,0.54929032]
[1743046972269,0.09840695,87621.0,87620.0,0.54929032]
[1743046972670,0.08282239,87621.0,87620.0,0.54929032]
[1743046973471,0.08282239,87621.0,87620.0,0.75441155]
[1743046974964,0.19693649,87621.0,87620.0,0.75441155]
[1743046976977,0.19693649,87621.0,87620.0,0.54929032]
[1743046981180,0.19693649,87621.0,87620.0,0.18849032]
[1743046981375,0.19688767,87621.0,87620.0,0.18849032]
[1743046981785,0.19760767,87621.0,87620.0,0.18849032]
[1743046982089,0.19688767,87621.0,87620.0,0.18849032]
[1743046983680,0.19683665,87621.0,87620.0,0.18849032]
[1743046984686,0.19759665,87621.0,87620.0,0.18849032]
[1743046984896,0.19683665,87621.0,87620.0,0.18849032]
[1743046985385,0.19751665,87621.0,87620.0,0.18849032]
[1743046985594,0.19683665,87621.0,87620.0,0.18849032]
[1743046986785,0.19755665,87621.0,87620.0,0.18849032]
[1743046987182,0.19683665,87621.0,87620.0,0.18849032]
[1743046987889,0.19751665,87621.0,87620.0,0.18849032]
[1743046989294,0.19752151,87621.0,87620.0,0.18849032]
[1743046989687,0.21249055,87621.0,87620.0,0.18849032]
[1743046991297,0.21263087,87621.0,87620.0,0.18849032]
[1743046991597,0.21263087,87621.0,87620.0,0.46140707]
[1743046992799,0.21263087,87621.0,87620.0,0.43060707]
[1743046995301,0.21267215,87621.0,87620.0,0.43060707]
[1743047001198,0.21263921,87621.0,87620.0,0.43060707]
[1743047006309,0.21263921,87621.0,87620.0,0.40492427]
[1743047006808,0.19767732,87621.0,87620.0,0.40492427]
[1743047007310,0.2033846,87621.0,87620.0,0.40492427]
[1743047007508,0.19403342,87621.0,87620.0,0.40492427]
[1743047007712,0.20326526,87621.0,87620.0,0.40492427]
[1743047014003,0.20326526,87621.0,87620.0,0.13200752]
[1743047015216,0.19755798,87621.0,87620.0,0.13200752]
[1743047016014,0.21244972,87621.0,87620.0,0.13200752]
[1743047020710,0.21815701,87621.0,87620.0,0.13200752]
[1743047024012,0.20326527,87621.0,87620.0,0.13200752]
[1743047025117,0.18832614,87621.0,87620.0,0.13200752]
[1743047025316,0.20332552,87621.0,87620.0,0.13200752]
[1743047025516,0.20332552,87621.0,87620.0,0.40585512]
[1743047026719,0.19761823,87621.0,87620.0,0.40585512]
[1743047027025,0.20332552,87621.0,87620.0,0.40585512]
[1743047032730,0.2033232,87621.0,87620.0,0.40585512]
[1743047034224,0.2033232,87621.0,87620.0,0.3941602]
[1743047034633,0.19403343,87621.0,87620.0,0.3941602]
[1743047034825,0.20330934,87621.0,87620.0,0.3941602]
[1743047036526,0.19760205,87621.0,87620.0,0.3941602]
[1743047036726,0.19760205,87621.0,87620.0,0.40581708]
[1743047037132,0.21249661,87621.0,87620.0,0.40581708]
[1743047038137,0.19760205,87621.0,87620.0,0.43841708]
[1743047039939,0.19760205,87621.0,87620.0,0.79921708]
[1743047042240,0.19760205,87621.0,87620.0,0.52536948]
[1743047042430,0.19764205,87621.0,87620.0,0.52536948]
[1743047043642,0.08352795,87621.0,87620.0,0.52536948]
[1743047043852,0.19764205,87621.0,87620.0,0.52536948]
[1743047045129,0.08352795,87621.0,87620.0,0.52536948]
[1743047045340,0.19692205,87621.0,87620.0,0.52536948]
[1743047045641,0.19760205,87621.0,87620.0,0.52536948]
[1743047047642,0.18832614,87621.0,87620.0,0.52536948]
[1743047047843,0.1973903,87621.0,87620.0,0.52536948]
[1743047049641,0.18832614,87621.0,87620.0,0.52536948]
[1743047049837,0.19737937,87621.0,87620.0,0.52536948]
[1743047053650,0.19739837,87621.0,87620.0,0.52536948]
[1743047054744,0.08328427,87621.0,87620.0,0.52536948]
[1743047055642,0.08322514,87621.0,87620.0,0.52536948]
[1743047057057,0.19733924,87621.0,87620.0,0.52536948]
[1743047058153,0.19665924,87621.0,87620.0,0.52536948]
[1743047063457,0.19660503,87621.0,87620.0,0.52536948]
[1743047065158,0.19660503,87621.0,87620.0,0.16456948]
[1743047065357,0.19736503,87621.0,87620.0,0.16456948]
[1743047065555,0.19736503,87621.0,87620.0,0.52536948]
[1743047065860,0.19660503,87621.0,87620.0,0.16456948]
[1743047066159,0.19660503,87621.0,87620.0,0.52536948]
[1743047066160,0.19728503,87621.0,87620.0,0.52536948]
[1743047066368,0.19660503,87621.0,87620.0,0.52536948]
[1743047067362,0.19670473,87621.0,87620.0,0.52536948]
[1743047068159,0.19670473,87621.0,87620.0,0.16456948]
[1743047068357,0.19738473,87621.0,87620.0,0.52536948]
[1743047068554,0.19670473,87621.0,87620.0,0.52536948]
[1743047071462,0.19671823,87621.0,87620.0,0.52536948]
[1743047073252,0.1967043,87621.0,87620.0,0.52536948]
[1743047075263,0.19671587,87621.0,87620.0,0.52536948]
[1743047077256,0.19670369,87621.0,87620.0,0.52536948]
[1743047077457,0.19670369,87621.0,87620.0,0.5137126]
[1743047077769,0.19670369,87621.0,87620.0,0.4499126]
[1743047079258,0.19663767,87621.0,87620.0,0.4499126]
[1743047080657,0.19663767,87621.0,87620.0,0.0891126]
[1743047080862,0.19739767,87621.0,87620.0,0.0891126]
[1743047085470,0.19735316,87621.0,87620.0,0.1216126]
[1743047085767,0.19735316,87621.0,87620.0,0.1546126]
[1743047090177,0.19735316,87621.0,87620.0,0.00068]
[1743047090375,0.1141154,87620.0,87619.0,0.27375401]
[1743047090558,0.1296902,87620.0,87619.0,0.27435401]
[1743047090864,0.21234189,87620.0,87619.0,0.27435401]
[1743047091064,0.21243012,87620.0,87619.0,0.27435401]
[1743047091570,0.3395166,87620.0,87619.0,0.24866896]
[1743047091764,0.3415166,87620.0,87619.0,0.24866896]
[1743047092778,0.34180228,87620.0,87619.0,0.24866896]
[1743047094373,0.34180228,87620.0,87619.0,0.0006]
[1743047094871,0.03343927,87620.0,87619.0,0.1147167]
[1743047095174,0.08019882,87629.0,87628.0,0.114105]
[1743047095373,0.08079883,87629.0,87628.0,0.587385]
[1743047095570,0.08019882,87629.0,87628.0,2.496985]
[1743047095774,0.08019882,87629.0,87628.0,2.562285]
[1743047095973,0.08019882,87629.0,87628.0,2.450405]
[1743047096379,0.19430252,87629.0,87628.0,2.450405]
[1743047096567,0.19830252,87629.0,87628.0,2.450405]
[1743047096871,0.20030252,87629.0,87628.0,2.450405]
[1743047097061,0.21810329,87629.0,87628.0,2.450405]
[1743047097260,0.20030252,87629.0,87628.0,2.450405]
[1743047097467,0.21609539,87629.0,87628.0,2.450405]
[1743047097672,0.21809539,87629.0,87628.0,2.450405]
[1743047097867,0.21409539,87629.0,87628.0,2.450405]